bitfinex-derivatives/quotes_ETHF0:USTF0_20250923
["timestamp","ask_amount","ask_price","bid_price","bid_amount"]
[1758627723508,1.5233543,4195.6,4195.5,1.29626]
[1758627724711,1.5233543,4195.6,4195.5,0.8676]
[1758627725214,0.7903943,4195.6,4195.5,1.29627]
[1758627725514,0.5660943,4195.6,4195.5,1.29627]
[1758627726421,1.7430543,4195.6,4195.5,0.8676]
[1758627726719,1.7430543,4195.6,4195.5,1.29627]
[1758627727615,1.7430543,4195.6,4195.5,0.8676]
[1758627727821,1.17699,4195.3,4195.2,0.5288]
[1758627728117,1.17699,4195.3,4195.2,1.4127]
[1758627728517,0.7483,4195.3,4195.2,1.4127]
[1758627728730,0.444,4195.3,4195.2,1.4127]
[1758627729028,1.17693,4195.9,4195.8,0.745]
[1758627729216,1.74343351,4195.9,4195.8,0.745]
[1758627732124,1.74343351,4195.9,4195.8,0.5288]
[1758627732315,1.09050351,4195.9,4195.4,0.42868]
[1758627732512,1.17695,4195.7,4195.6,0.5288]
[1758627732716,1.74345351,4195.7,4195.6,0.5288]
[1758627733424,1.74345351,4195.7,4195.6,0.95746]
[1758627733725,1.74345351,4195.7,4195.6,0.5288]
[1758627734619,1.74345351,4195.7,4195.2,0.239]
[1758627734927,0.767,4195.4,4195.3,0.239]
[1758627735224,1.33350351,4195.4,4195.3,0.754]
[1758627735418,1.33350351,4195.4,4195.0,0.123]
[1758627735419,0.42871,4195.1,4195.0,0.3071]
[1758627735717,0.42871,4195.1,4194.0,0.1226]
[1758627735718,0.42875,4194.8,4194.6,0.326]
[1758627735918,1.75985351,4194.7,4194.6,0.7589]
[1758627737224,1.75985351,4194.7,4194.6,0.5445]
[1758627738226,1.75985351,4194.7,4194.6,0.97326]
[1758627738227,1.33110351,4194.7,4194.6,0.97326]
[1758627738422,0.56650351,4194.7,4194.6,1.18766]
[1758627738627,0.63593,4195.0,4194.9,0.7589]
[1758627738920,0.1275,4196.0,4194.9,0.7589]
[1758627738921,0.2072,4195.7,4195.6,1.18755]
[1758627739119,1.07147,4196.4,4195.6,1.18755]
[1758627739120,0.85824,4195.8,4195.7,0.7589]
[1758627739320,1.75784947,4195.8,4195.7,0.7589]
[1758627739528,0.99420947,4195.8,4195.7,0.7589]
[1758627740026,1.32920947,4195.8,4195.7,0.7589]
[1758627740728,0.77180947,4195.8,4195.7,0.7589]
[1758627741429,1.10680947,4195.8,4195.7,0.7589]
[1758627741929,1.53544947,4195.8,4195.7,1.18755]
[1758627742427,1.75784947,4195.8,4195.7,1.18755]
[1758627742929,1.32920947,4195.8,4195.7,1.18755]
[1758627745126,1.75784947,4195.8,4195.7,1.18755]
[1758627745427,1.32920947,4195.8,4195.7,1.18755]
[1758627746325,1.75784947,4195.8,4195.7,1.18755]
[1758627747427,1.32920947,4195.8,4195.7,1.18755]
[1758627747620,1.75784947,4195.8,4195.7,1.20344884]
[1758627747815,1.75784947,4195.8,4195.7,1.18755]
[1758627748013,0.99420947,4195.8,4195.7,1.21605596]
[1758627748219,1.32920947,4195.8,4195.7,1.21605596]
[1758627748419,1.32920947,4195.8,4195.7,1.21862931]
[1758627748927,0.77180947,4195.8,4195.7,1.21862931]
[1758627749127,0.1263,4197.0,4196.3,0.7589]
[1758627749128,1.19318,4196.4,4196.3,0.7589]
[1758627749327,1.75806926,4196.4,4196.3,1.42649]
[1758627749521,1.75806926,4196.4,4196.3,1.45756931]
[1758627750231,0.99448926,4196.4,4196.3,1.45756931]
[1758627750636,1.32948926,4196.4,4196.3,1.45756931]
[1758627752831,1.75806926,4196.4,4196.3,1.45756931]
[1758627755828,1.75806926,4196.4,4196.3,0.03107931]
[1758627756330,1.75806926,4196.4,4196.3,0.27007931]
[1758627757832,1.75806926,4196.4,4196.3,0.03107931]
[1758627758232,1.19318,4196.4,4196.3,0.03107931]
[1758627758427,1.75744548,4196.4,4196.3,0.03107931]
[1758627765443,1.19318,4196.4,4196.3,0.03107931]
[1758627765735,1.75739961,4196.4,4196.3,0.03107931]
[1758627765940,5.75739961,4196.4,4196.3,0.03107931]
[1758627766127,5.75739961,4196.4,4195.5,0.5757]
[1758627766128,1.20476,4195.6,4195.5,0.5757]
[1758627766732,1.20481,4195.2,4195.1,0.2204]
[1758627766932,1.20481,4195.2,4194.5,0.1327]
[1758627766933,0.87322,4195.0,4194.9,0.2204]
[1758627767133,0.87322,4195.0,4194.5,0.1327]
[1758627767134,0.42875,4194.7,4194.6,0.42876]
[1758627767344,1.20485,4194.7,4194.6,1.42836]
[1758627768137,1.20485,4194.7,4194.6,0.7606]
[1758627768544,1.20485,4194.7,4194.6,0.7961]
[1758627768740,1.7711983,4194.7,4194.6,0.7961]
[1758627769230,1.7711983,4194.7,4194.0,0.1327]
[1758627769231,0.4445,4194.2,4194.1,0.2204]
[1758627769433,0.7761,4194.2,4194.1,0.6629]
[1758627769842,0.7761,4194.2,4194.1,0.9996]
[1758627772744,0.7761,4194.2,4194.1,1.42841]
[1758627775539,0.2236,4194.2,4194.1,1.42841]
[1758627775738,0.7761,4194.6,4194.5,1.18937]
[1758627776046,1.20486,4194.6,4194.5,1.18937]
[1758627778645,0.7761,4194.6,4194.5,1.18937]
[1758627778950,0.7761,4194.7,4194.6,1.18936]
[1758627779252,1.20485,4194.7,4194.6,1.18936]
[1758627781146,1.20485,4194.7,4194.6,0.7606]
[1758627781548,1.20485,4194.7,4194.6,1.18936]
[1758627783748,0.7761,4194.7,4194.6,1.18936]
[1758627784152,0.7761,4194.7,4194.1,0.239]
[1758627784153,0.3316,4195.1,4194.5,1.20362]
[1758627784349,0.3316,4195.4,4195.0,0.8923]
[1758627784652,0.5552,4195.3,4195.2,1.18929]
[1758627784849,0.7761,4195.3,4195.2,1.18929]
[1758627785150,1.20479,4195.3,4195.2,1.18929]
[1758627786647,0.4445,4195.3,4195.2,1.18929]
[1758627786848,0.7761,4195.3,4195.2,1.18929]
[1758627787241,1.20479,4195.3,4195.2,0.7606]
[1758627787447,1.20479,4195.3,4195.2,1.1893]
[1758627788356,1.76986909,4195.3,4195.2,1.1893]
[1758627789853,1.34117909,4195.3,4195.2,1.1893]
[1758627790452,0.4445,4195.3,4195.2,1.1893]
[1758627791257,0.4445,4195.9,4195.8,1.18924]
[1758627791458,1.01002435,4195.9,4195.8,1.18924]
[1758627791955,0.78912435,4195.9,4195.8,1.18924]
[1758627792755,0.76019,4196.3,4196.2,0.649]
[1758627792952,1.34164516,4196.3,4196.2,1.1892]
[1758627795359,1.34164516,4196.3,4196.2,1.4282]
[1758627795360,0.56554516,4196.3,4196.2,1.4282]
[1758627795660,0.2179,4196.7,4196.6,0.42855]
[1758627795957,1.32570289,4196.7,4196.6,0.84015]
[1758627796358,1.32570289,4196.7,4196.6,1.15295]
[1758627796563,1.75424289,4196.7,4196.6,1.15295]
[1758627797057,1.75424289,4196.7,4196.6,0.7244]
[1758627797764,1.75424289,4196.7,4196.6,1.15295]
[1758627800468,1.75424289,4196.7,4196.6,0.7244]
[1758627801060,1.75424289,4196.7,4196.6,1.15295]
[1758627801564,1.75424289,4196.7,4196.6,0.7244]
[1758627801770,0.1315,4196.5,4196.2,0.4612]
[1758627802062,0.4245,4196.3,4196.2,1.2026]
[1758627802263,0.4245,4196.3,4196.2,1.1783]
[1758627802568,0.7445,4196.3,4196.2,1.1783]
[1758627803661,1.17308,4196.3,4196.2,1.1783]
[1758627805065,0.7445,4196.3,4196.2,1.1783]
[1758627805671,1.17308,4196.3,4196.2,1.1783]
[1758627811277,1.17308,4196.3,4196.2,0.7497]
[1758627811576,1.17308,4196.3,4196.2,1.1783]
[1758627812077,1.17308,4196.3,4196.2,0.7497]
[1758627812275,1.73905871,4196.3,4196.2,0.7497]
[1758627814373,1.73905871,4196.3,4196.2,0.535]
[1758627817173,0.85315,4195.7,4195.6,0.7497]
[1758627817373,1.17315,4195.7,4195.6,1.17836]
[1758627817579,0.78646386,4195.7,4195.6,1.17836]
[1758627818079,0.42863,4195.9,4195.8,0.86554]
[1758627818080,0.96823,4195.9,4195.8,0.86554]
[1758627818382,1.5351076,4195.9,4195.8,1.17834]
[1758627819679,1.1064776,4195.9,4195.8,1.17834]
[1758627820276,0.5396,4195.9,4195.8,1.17834]
[1758627820483,0.96823,4195.9,4195.8,1.17834]
[1758627820980,0.5396,4195.9,4195.8,1.17834]
[1758627821982,1.10732114,4195.9,4195.8,1.17834]
[1758627822580,0.56772114,4195.9,4195.8,1.17834]
[1758627823380,0.56772114,4195.9,4195.8,1.41667]
[1758627823767,0.56772114,4195.9,4195.4,1.31069]
[1758627823768,0.64379,4196.3,4196.2,0.861]
[1758627823972,1.53091052,4196.3,4196.2,1.4184]
[1758627824187,1.10232052,4196.3,4196.2,1.4184]
[1758627824574,0.78292052,4196.3,4196.2,1.4184]
[1758627826681,0.56772052,4196.3,4196.2,1.4184]
[1758627827578,0.78292052,4196.3,4196.2,1.1794]
[1758627827779,1.10232052,4196.3,4196.2,1.4184]
[1758627828782,0.78292052,4196.3,4196.2,1.4184]
[1758627828980,1.10232052,4196.3,4196.2,1.4184]
[1758627829185,1.73520052,4196.3,4196.2,0.3184]
[1758627829480,1.73520052,4196.3,4196.2,0.239]
[1758627829685,1.16751,4196.1,4196.0,0.5375]
[1758627829883,1.16753,4195.9,4195.8,0.96614]
[1758627830184,1.30662052,4195.9,4195.8,1.20514]
[1758627830387,1.30662052,4195.9,4195.8,1.41844]
[1758627830578,0.56772052,4195.9,4195.8,1.41844]
[1758627830777,1.53124536,4196.1,4196.0,1.30112]
[1758627831080,1.73554536,4196.1,4196.0,1.30112]
[1758627831283,1.73554536,4196.1,4196.0,0.8725]
[1758627831580,1.73554536,4196.1,4196.0,0.7508]
[1758627831785,1.73554536,4196.1,4196.0,0.5375]
[1758627832279,1.73554536,4196.1,4196.0,0.42862]
[1758627832480,1.29882,4196.0,4195.9,0.5574]
[1758627832788,1.73555536,4196.0,4195.9,1.41843]
[1758627833082,1.73555536,4196.0,4195.9,0.9898]
[1758627834487,1.73555536,4196.0,4195.9,1.41843]
[1758627835185,1.73555536,4196.0,4195.9,1.17943]
[1758627835486,1.73555536,4196.0,4195.9,0.9898]
[1758627835891,1.73555536,4196.0,4195.9,0.7508]
[1758627836091,1.73555536,4196.0,4195.9,0.9898]
[1758627836390,1.73555536,4196.0,4195.9,1.41843]
[1758627836888,1.30693536,4196.0,4195.9,1.41843]
[1758627837480,1.73555536,4196.0,4195.9,1.41843]
[1758627837886,0.56803536,4196.0,4195.9,1.41843]
[1758627838086,1.16749,4196.3,4196.2,0.86099]
[1758627838288,1.30697624,4196.3,4196.2,0.86099]
[1758627838486,1.73556624,4196.3,4196.2,0.86099]
[1758627838689,1.73556624,4196.3,4196.2,1.17939]
[1758627839090,1.73556624,4196.3,4196.2,0.5375]
[1758627839992,1.73556624,4196.3,4196.2,0.9661]
[1758627840288,1.30697624,4196.3,4196.2,1.1794]
[1758627840495,1.30696675,4196.3,4196.2,1.1794]
[1758627841189,0.4286,4196.2,4196.1,0.226]
[1758627841491,1.73556675,4196.2,4196.1,0.97301]
[1758627841795,1.73556675,4196.2,4196.1,1.19211]
[1758627844395,1.30696675,4196.2,4196.1,1.19211]
[1758627844698,1.30696675,4196.2,4196.1,1.40541]
[1758627846198,1.73556675,4196.2,4196.1,1.40541]
[1758627846496,1.30696675,4196.2,4196.1,1.40541]
[1758627849401,0.56806675,4196.2,4196.1,1.40541]
[1758627850102,0.78326675,4196.2,4196.1,1.40541]
[1758627850398,1.10266675,4196.2,4196.1,1.40541]
[1758627850704,0.78326675,4196.2,4196.1,1.40541]
[1758627857413,1.09046675,4196.2,4196.1,1.40541]
[1758627861413,1.090312,4196.2,4196.1,1.40541]
[1758627861908,0.783112,4196.2,4196.1,1.40541]
[1758627862113,0.770412,4196.2,4196.1,1.40541]
[1758627862516,1.077612,4196.2,4196.1,1.40541]
[1758627863315,1.298412,4196.2,4196.1,1.40541]
[1758627865310,0.875112,4196.2,4195.8,0.42863]
[1758627865514,0.7305,4195.7,4195.6,0.73656]
[1758627865709,0.7305,4195.7,4195.4,0.42867]
[1758627865710,0.4233,4195.5,4195.4,0.42867]
[1758627865912,1.852082,4195.5,4195.4,0.5469]
[1758627866615,1.1592,4195.2,4195.1,0.5165]
[1758627866816,1.727112,4195.2,4195.1,0.7555]
[1758627867016,1.727112,4195.2,4195.1,0.5165]
[1758627867217,1.727112,4195.2,4195.1,0.7555]
[1758627868618,1.298412,4195.2,4195.1,0.7555]
[1758627869212,1.298412,4195.2,4195.1,0.9583]
[1758627869911,1.727112,4195.2,4195.1,1.38701]
[1758627870812,1.298412,4195.2,4195.1,1.38701]
[1758627871007,1.29731909,4195.2,4195.1,1.38701]
[1758627871215,1.72601909,4195.2,4195.1,1.38701]
[1758627871415,1.1592,4195.2,4195.1,1.38701]
[1758627871614,1.72590811,4195.2,4195.1,0.9583]
[1758627872515,1.72590811,4195.2,4195.1,1.38701]
[1758627874414,1.72590811,4195.2,4195.1,0.9583]
[1758627874618,1.72590811,4195.2,4195.1,1.38701]
[1758627874819,1.29720811,4195.2,4195.1,1.38701]
[1758627875319,0.7305,4195.2,4195.1,1.38701]
[1758627875817,1.1592,4195.2,4195.1,1.38701]
[1758627876813,0.6312,4195.2,4195.1,1.38701]
[1758627877020,0.63119,4195.3,4195.2,1.14799]
[1758627877215,1.15919,4195.3,4195.2,1.14799]
[1758627881020,1.15919,4195.3,4195.2,1.38699]
[1758627881618,0.7305,4195.3,4195.2,1.38699]
[1758627882222,0.04149637,4195.4,4195.3,0.42869]
[1758627882427,0.24399637,4195.4,4195.3,1.14799]
[1758627882620,1.11736388,4195.4,4195.3,1.14799]
[1758627883016,1.54604388,4195.4,4195.3,1.14799]
[1758627883324,0.55119637,4195.4,4195.3,1.14799]
[1758627883918,0.743,4195.9,4195.8,1.17124]
[1758627884118,1.73784176,4195.9,4195.8,1.17124]
[1758627885419,1.30921176,4195.9,4195.8,1.17124]
[1758627885625,0.04149246,4196.0,4195.9,0.42863]
[1758627885814,0.04149246,4196.0,4195.9,1.17123]
[1758627887121,0.5361,4196.5,4196.4,0.85767]
[1758627887427,1.30840806,4196.5,4196.4,1.17117]
[1758627887726,1.73696806,4196.5,4196.4,0.7426]
[1758627888126,1.73696806,4196.5,4196.4,1.17117]
[1758627888328,1.73696806,4196.5,4196.4,0.7426]
[1758627888624,1.73696806,4196.5,4196.4,1.17117]
[1758627893232,1.86076806,4196.5,4196.4,0.74207]
[1758627893618,1.86076806,4196.5,4196.4,0.96067]
[1758627894827,1.86076806,4196.5,4196.3,0.239]
[1758627894828,0.64737,4196.4,4196.3,0.239]
[1758627895033,1.73697806,4196.4,4196.3,0.5525]
[1758627895534,1.73697806,4196.4,4196.3,0.7711]
[1758627899835,1.17157,4196.4,4196.3,0.7711]
[1758627900034,1.73707951,4196.4,4196.3,0.7711]
[1758627900234,1.73707951,4196.4,4196.3,0.9816]
[1758627901740,0.4257,4196.2,4196.1,0.3135]
[1758627901935,1.17159,4196.2,4196.1,0.3135]
[1758627902134,1.73709951,4196.2,4196.1,0.3135]
[1758627902638,1.73709951,4196.2,4196.1,0.5321]
[1758627903138,1.73709951,4196.2,4196.1,1.17121]
[1758627904839,1.73709951,4196.2,4196.1,0.7426]
[1758627906541,1.30850951,4196.2,4196.1,1.17121]
[1758627906739,1.73710951,4196.2,4196.1,0.7426]
[1758627907032,1.10160951,4196.2,4196.1,1.17121]
[1758627907239,0.56550951,4196.2,4196.1,1.40952]
[1758627907435,0.743,4197.1,4197.0,0.4291]
[1758627907740,1.73725681,4197.1,4197.0,0.7426]
[1758627908035,0.64735,4196.6,4196.5,0.5632]
[1758627908228,0.64735,4196.6,4196.5,0.9816]
[1758627908229,1.73730681,4196.6,4196.5,0.9816]
[1758627909237,1.73730681,4196.6,4196.5,0.7426]
[1758627909539,1.73730681,4196.6,4196.5,0.5321]
[1758627910340,1.73730681,4196.6,4196.5,0.7426]
[1758627911140,0.78455681,4196.6,4196.5,1.17116]
[1758627911351,0.56575681,4196.6,4196.5,1.30526]
[1758627911545,0.56625725,4196.8,4196.7,1.17114]
[1758627912242,0.99478725,4196.8,4196.7,1.17114]
[1758627912640,0.56625725,4196.8,4196.7,1.17114]
[1758627913534,0.78505725,4196.8,4196.7,1.17114]
[1758627913738,1.73368725,4196.8,4196.7,1.17114]
[1758627913937,1.73368725,4196.8,4196.7,1.41014]
[1758627916347,1.30515725,4196.8,4196.7,1.41014]
[1758627917048,0.56625725,4196.8,4196.7,1.41014]
[1758627918241,0.75591,4197.1,4196.5,0.1341]
[1758627918242,0.5297,4197.1,4196.6,0.3283]
[1758627918550,0.04148267,4197.2,4196.4,0.42856]
[1758627918551,0.84426,4196.5,4196.4,0.42856]
[1758627918853,1.87049989,4196.5,4196.4,0.5435]
[1758627919052,1.73699989,4196.5,4196.4,1.21107]
[1758627919253,1.73699989,4196.5,4196.4,1.43267]
[1758627920749,1.30843989,4196.5,4196.4,1.43267]
[1758627921455,1.73699989,4196.5,4196.4,1.43267]
[1758627923964,1.30843989,4196.5,4196.4,1.43267]
[1758627924160,1.30843989,4196.5,4196.4,1.19367]
[1758627924361,1.30843989,4196.5,4196.4,1.43267]
[1758627925660,0.56533989,4196.5,4196.4,1.43267]
[1758627925860,0.64194,4196.7,4196.6,1.19365]
[1758627926061,1.73711001,4196.7,4196.6,1.19365]
[1758627927757,0.77887001,4196.7,4196.6,1.19365]
[1758627928069,0.56547001,4196.7,4196.6,1.19365]
[1758627928269,1.10627001,4196.7,4196.6,1.19365]
[1758627928469,1.53481001,4196.7,4196.6,1.19365]
[1758627928768,1.73711001,4196.7,4196.6,0.7651]
[1758627929367,1.73711001,4196.7,4196.6,1.19365]
[1758627929565,1.30857001,4196.7,4196.6,1.19365]
[1758627934366,1.73711001,4196.7,4196.6,1.19365]
[1758627934569,1.30857001,4196.7,4196.6,1.19365]
[1758627934866,1.73711001,4196.7,4196.6,1.19365]
[1758627937265,0.42857,4196.4,4195.7,1.07162]
[1758627937475,1.17169,4196.2,4196.1,0.239]
[1758627937771,1.17172,4196.0,4195.9,0.97212]
[1758627937964,1.73719001,4196.0,4195.9,0.7825]
[1758627938369,1.73719001,4196.0,4195.9,1.21113]
[1758627938564,1.87069001,4196.0,4195.9,0.3283]
[1758627938770,1.17174,4195.8,4195.7,0.97214]
[1758627938969,1.73721001,4195.8,4195.7,1.21114]
[1758627939271,0.631,4195.3,4195.2,0.7651]
[1758627939579,0.2134,4194.7,4194.6,1.19386]
[1758627939774,0.5408,4194.7,4194.6,1.43286]
[1758627939973,0.5408,4194.7,4194.6,1.67126]
[1758627940368,0.2134,4194.7,4194.6,1.67126]
[1758627940768,0.2134,4194.7,4194.6,1.43286]
[1758627941474,0.3274,4195.4,4195.3,0.2152]
[1758627941665,0.5408,4195.4,4195.3,1.0041]
[1758627941868,1.7369754,4195.4,4195.3,0.5435]
[1758627942064,0.84441,4195.1,4195.0,0.7835]
[1758627942273,1.17181,4195.1,4195.0,0.7835]
[1758627944276,0.7354,4194.7,4194.3,0.42878]
[1758627944578,0.7354,4194.4,4194.3,1.20608]
[1758627944877,0.7354,4194.4,4194.3,1.44608]
[1758627945774,1.16418,4194.4,4194.3,1.0173]
[1758627945974,1.16418,4194.4,4194.3,1.44609]
[1758627946274,0.85561,4194.1,4194.0,0.5572]
[1758627946480,1.16421,4194.1,4194.0,0.7972]
[1758627946680,1.16421,4194.1,4194.0,1.44612]
[1758627947081,1.16421,4194.1,4194.0,1.0173]
[1758627947677,1.16421,4194.1,4194.0,0.24]
[1758627948278,0.42883,4193.9,4193.8,0.3329]
[1758627948477,1.16423,4193.9,4193.8,0.7972]
[1758627951683,1.16423,4193.9,4193.8,1.0173]
[1758627951985,0.4268,4193.9,4193.8,1.0173]
[1758627953485,0.2184,4193.9,4193.8,1.0173]
[1758627954687,0.2184,4193.9,4193.8,1.44614]
[1758627955489,0.2184,4193.9,4193.8,1.20614]
[1758627955681,0.2184,4193.9,4193.8,1.44614]
[1758627958695,0.64723,4193.9,4193.8,1.44614]
[1758627958992,0.95583,4193.9,4193.8,1.0173]
[1758627959696,1.16423,4193.9,4193.8,1.0173]
[1758627959896,1.16423,4193.9,4193.8,1.44614]
[1758627960395,0.7354,4193.9,4193.8,1.44614]
[1758627960589,0.4268,4193.9,4193.8,1.44614]
[1758627960987,0.2184,4193.9,4193.8,1.44614]
[1758627962898,1.16423,4193.9,4193.8,1.44614]
[1758627964088,1.16423,4193.9,4193.8,1.20614]
[1758627964292,1.16423,4193.9,4193.8,1.44514]
[1758627964789,0.2184,4193.9,4193.8,1.44514]
[1758627965298,0.2184,4194.0,4193.9,0.87323]
[1758627965506,0.527,4194.0,4193.9,1.20613]
[1758627965794,0.4288,4194.2,4194.1,0.87321]
[1758627965988,0.6472,4194.2,4194.1,1.20611]
[1758627966187,0.2184,4194.2,4194.1,1.20611]
[1758627966393,0.517,4194.4,4194.3,0.7773]
[1758627966597,1.72788053,4194.4,4194.3,0.7773]
[1758627967796,1.72788053,4194.4,4194.3,1.20609]
[1758627968094,1.72788053,4194.4,4194.3,0.7773]
[1758627968493,1.72788053,4194.4,4194.3,1.20609]
[1758627969407,1.72788053,4194.4,4194.3,0.7773]
[1758627969701,1.72788053,4194.4,4194.3,1.20609]
[1758627969897,1.72788053,4194.4,4194.3,0.7773]
[1758627976598,0.4196,4194.1,4194.0,0.5582]
[1758627976796,1.17555,4193.7,4193.6,1.19856]
[1758627977107,1.73925053,4193.7,4193.6,1.43756]
[1758627978001,1.31040053,4193.7,4193.6,1.43756]
[1758627978205,0.76970053,4193.7,4193.6,1.43756]
[1758627978707,1.19855053,4193.7,4193.6,1.43756]
[1758627978900,1.52565053,4193.7,4193.6,1.43756]
[1758627979908,1.73925053,4193.7,4193.6,1.43756]
[1758627987208,1.73925053,4193.7,4193.6,1.19856]
[1758627987504,1.73925053,4193.7,4193.6,1.43756]
[1758627987701,1.31040053,4193.7,4193.6,1.43756]
[1758627989201,0.56370053,4193.7,4193.6,1.43756]
[1758627989401,0.42881,4194.1,4194.0,1.32701]
[1758627989603,0.56628195,4194.2,4194.1,0.65111]
[1758627989906,0.77228446,4194.2,4194.1,1.43751]
[1758627990310,1.09938446,4194.2,4194.1,1.43751]
[1758627990609,1.52818446,4194.2,4194.1,1.43751]
[1758627991113,0.56628446,4194.2,4194.1,1.43751]
[1758627992615,1.17543,4194.9,4194.8,0.86254]
[1758627992815,1.7418053,4194.9,4194.8,1.19844]
[1758627993107,0.63474,4194.8,4194.7,0.239]
[1758627993315,1.7418153,4194.8,4194.7,0.5749]
[1758627993817,1.7418153,4194.8,4194.7,1.00365]
[1758627994010,1.7418153,4194.8,4194.1,1.07202]
[1758627994011,0.42875,4194.7,4194.6,0.42876]
[1758627994216,1.17547,4194.5,4194.4,0.98697]
[1758627994411,1.7418453,4194.5,4194.4,1.22597]
[1758627994821,1.3130753,4194.5,4194.4,1.22597]
[1758627995319,1.3130753,4194.5,4194.4,1.43747]
[1758627995715,1.3130753,4194.5,4194.4,1.19847]
[1758627995915,1.3130753,4194.5,4194.4,1.43747]
[1758627996806,0.7723753,4194.5,4194.4,1.43747]
[1758627997109,0.42878,4194.4,4194.0,0.1285]
[1758627997309,0.42879,4194.3,4194.2,0.98699]
[1758627997508,1.17549,4194.3,4194.2,1.22599]
[1758627997713,1.17549,4194.3,4194.2,0.98699]
[1758627997918,1.17549,4194.3,4194.2,1.22599]
[1758627998318,1.17549,4194.3,4194.2,0.7972]
[1758627998518,1.74147478,4194.3,4194.2,1.226]
[1758627999219,1.74147478,4194.3,4194.2,0.7972]
[1758628000614,1.74147478,4194.3,4194.2,1.226]
[1758628002120,1.74147478,4194.3,4194.2,0.987]
[1758628002422,1.74147478,4194.3,4194.2,1.226]
[1758628003318,1.74147478,4194.3,4194.2,0.7972]
[1758628003818,0.83713,4193.9,4193.8,0.65174]
[1758628004124,1.71043799,4193.9,4193.8,0.66784]
[1758628004412,1.71043799,4193.9,4193.8,0.99024]
[1758628004816,1.71043799,4193.9,4193.8,1.21314]
[1758628005717,0.56600799,4193.9,4193.8,1.42674]
[1758628006222,0.42881,4194.1,4194.0,1.31502]
[1758628006511,1.19986825,4194.1,4194.0,1.31502]
[1758628007220,1.50716825,4194.1,4194.0,1.31502]
[1758628008723,1.71036825,4194.1,4194.0,0.8862]
[1758628009022,1.71036825,4194.1,4194.0,1.31502]
[1758628009916,1.28155825,4194.1,4194.0,1.31502]
[1758628010224,1.71036825,4194.1,4194.0,1.31502]
[1758628010423,0.56595825,4194.1,4194.0,1.31502]
[1758628010618,1.07841374,4194.3,4194.2,1.1877]
[1758628010813,0.77111374,4194.3,4194.2,1.1877]
[1758628011120,1.07841374,4194.3,4194.2,1.1877]
[1758628011320,1.28161374,4194.3,4194.2,1.1877]
[1758628011524,1.71040374,4194.3,4194.2,1.1877]
[1758628014124,1.28161374,4194.3,4194.2,1.1877]
[1758628015315,0.56601374,4194.3,4194.2,1.1877]
[1758628015816,1.14435,4194.7,4194.6,1.18765]
[1758628016016,1.71043344,4194.7,4194.6,1.18765]
[1758628017327,1.28168344,4194.7,4194.6,1.18765]
[1758628017828,0.77118344,4194.7,4194.6,1.18765]
[1758628018125,0.56608344,4194.7,4194.6,1.18765]
[1758628018426,0.5124,4195.3,4195.2,1.1876]
[1758628018621,1.2815168,4195.3,4195.2,1.4266]
[1758628018823,1.7102068,4195.3,4195.2,1.4266]
[1758628019128,1.7102068,4195.3,4195.2,0.9979]
[1758628019320,1.7102068,4195.3,4195.2,1.4266]
[1758628019931,1.2815168,4195.3,4195.2,1.4266]
[1758628020229,1.7102068,4195.3,4195.2,1.4266]
[1758628021126,1.2815168,4195.3,4195.2,1.4266]
[1758628021426,0.5659168,4195.3,4195.2,1.4266]
[1758628021629,0.5659168,4195.3,4195.2,4.6344]
[1758628022827,1.0783168,4195.3,4195.2,4.6344]
[1758628023829,1.2815168,4195.3,4195.2,4.6344]
[1758628024029,1.2815168,4195.3,4195.2,4.3954]
[1758628024331,1.2815168,4195.3,4195.2,4.6344]
[1758628025528,1.7102068,4195.3,4195.2,4.6344]
[1758628026223,1.7102068,4195.3,4195.2,4.3954]
[1758628026430,1.7102068,4195.3,4195.2,4.6344]
[1758628026630,1.7102068,4195.3,4195.2,3.9921]
[1758628026835,1.7102068,4195.3,4195.2,3.2078]
[1758628027034,0.42873,4194.9,4194.8,0.42874]
[1758628027236,0.7156,4194.9,4194.8,1.21304]
[1758628027534,0.7156,4194.9,4194.8,1.42664]
[1758628027735,1.14433,4194.9,4194.8,1.42664]
[1758628028032,1.70974163,4194.9,4194.8,0.7843]
[1758628029431,1.70974163,4194.9,4194.8,0.5453]
[1758628029631,1.70974163,4194.9,4194.8,0.7843]
[1758628030035,1.70974163,4194.9,4194.8,1.21304]
[1758628030837,1.70974163,4194.9,4194.8,0.97404]
[1758628031038,1.70974163,4194.9,4194.8,1.21304]
[1758628033336,1.28101163,4194.9,4194.8,1.42664]
[1758628034037,0.97371163,4194.9,4194.8,1.42664]
[1758628034233,0.77051163,4194.9,4194.8,1.42664]
[1758628034434,0.65121,4195.1,4195.0,1.31392]
[1758628034636,0.787909,4195.1,4195.0,1.31392]
[1758628035037,0.565409,4195.1,4195.0,1.31392]
[1758628035233,5.087428,4196.2,4195.0,1.31392]
[1758628035234,0.2225,4195.9,4195.8,1.18784]
[1758628035538,0.65111,4196.1,4196.0,1.31382]
[1758628035740,1.73520802,4196.1,4196.0,1.31382]
[1758628036232,1.73520802,4196.1,4196.0,0.7592]
[1758628036438,0.86903,4195.9,4195.8,0.5751]
[1758628036638,1.77002802,4195.9,4195.8,0.5751]
[1758628036830,1.77002802,4195.9,4195.8,0.239]
[1758628037036,1.77002802,4195.9,4195.8,0.66764]
[1758628037237,1.34139802,4195.9,4195.8,1.44134]
[1758628037543,0.56539802,4195.9,4195.8,1.44134]
[1758628037735,0.223,4196.3,4196.2,0.42859]
[1758628037937,1.12448266,4196.3,4196.2,1.10619]
[1758628038530,0.56588266,4196.3,4196.2,4.65009]
[1758628039639,0.3356,4196.7,4196.6,0.42855]
[1758628039940,1.34156354,4196.7,4196.6,1.0137]
[1758628040330,1.34156354,4196.7,4196.2,3.5439]
[1758628040331,0.42857,4196.4,4196.2,3.5439]
[1758628040537,1.34156354,4196.3,4196.2,3.2078]
[1758628040843,1.34156354,4196.3,4196.2,3.4478]
[1758628041041,1.34156354,4196.3,4196.2,4.21249]